[Event "*** Titled Tuesday Blitz"]
[Site "Chess.com"]
[Date "2020.04.28"]
[Round "7"]
[White "godsgonnacutudown"]
[Black "RianKapriaga"]
[Result "0-1"]
[WhiteElo "2342"]
[BlackElo "2207"]
[TimeControl "180+1"]
[EndTime "11:18:07 PDT"]
[Termination "RianKapriaga won by resignation"]

1. d4 {[%clk 0:02:59.8]} 1... Nf6 {[%clk 0:02:57]} 2. c4 {[%clk 0:03:00.1]} 2...
e6 {[%clk 0:02:57.2]} 3. Nf3 {[%clk 0:03:00.4]} 3... Bb4+ {[%clk 0:02:57.3]} 4.
Bd2 {[%clk 0:03:00.6]} 4... a5 {[%clk 0:02:55.4]} 5. g3 {[%clk 0:03:00.4]} 5...
b6 {[%clk 0:02:54.7]} 6. Bg2 {[%clk 0:03:00.9]} 6... Bb7 {[%clk 0:02:54.2]} 7.
O-O {[%clk 0:03:01.4]} 7... O-O {[%clk 0:02:53]} 8. Bf4 {[%clk 0:03:01.9]} 8...
d5 {[%clk 0:02:49.1]} 9. Nbd2 {[%clk 0:02:55.3]} 9... Nbd7 {[%clk 0:02:46.7]}
10. Rc1 {[%clk 0:02:55.4]} 10... c6 {[%clk 0:02:46.6]} 11. a3 {[%clk 0:02:55.8]}
11... Be7 {[%clk 0:02:45.6]} 12. Ne5 {[%clk 0:02:55.9]} 12... Rc8 {[%clk
0:02:42]} 13. Nxd7 {[%clk 0:02:52]} 13... Nxd7 {[%clk 0:02:40.4]} 14. e4 {[%clk
0:02:52.3]} 14... dxc4 {[%clk 0:02:35]} 15. Nxc4 {[%clk 0:02:52.6]} 15... c5
{[%clk 0:02:34.1]} 16. Nd6 {[%clk 0:02:43.9]} 16... Bxd6 {[%clk 0:02:31.5]} 17.
Bxd6 {[%clk 0:02:44.4]} 17... Re8 {[%clk 0:02:30.8]} 18. Bf4 {[%clk 0:02:34.6]}
18... cxd4 {[%clk 0:02:26.5]} 19. Qd2 {[%clk 0:02:35]} 19... Rxc1 {[%clk
0:02:18.9]} 20. Rxc1 {[%clk 0:02:35.2]} 20... Nc5 {[%clk 0:02:18]} 21. Qe2
{[%clk 0:02:34.9]} 21... e5 {[%clk 0:02:13.1]} 22. Bd2 {[%clk 0:02:34.4]} 22...
a4 {[%clk 0:02:12.1]} 23. Bb4 {[%clk 0:02:34.6]} 23... Ba6 {[%clk 0:02:04.8]}
24. Qd1 {[%clk 0:02:34]} 24... Nd3 {[%clk 0:01:56.2]} 25. Ra1 {[%clk 0:02:32.8]}
25... Nxb2 {[%clk 0:01:43.5]} 26. Qc2 {[%clk 0:02:32.4]} 26... Nd3 {[%clk
0:01:35]} 27. Qxa4 {[%clk 0:02:31.8]} 27... Nxb4 {[%clk 0:01:33.7]} 28. axb4
{[%clk 0:02:31.9]} 28... Bc4 {[%clk 0:01:33.3]} 29. Qc2 {[%clk 0:02:29.6]} 29...
b5 {[%clk 0:01:33.1]} 30. Qd2 {[%clk 0:02:30]} 30... h6 {[%clk 0:01:30.9]} 31.
Rc1 {[%clk 0:02:30.1]} 31... Qe7 {[%clk 0:01:29.4]} 32. Ra1 {[%clk 0:02:30.4]}
32... Rc8 {[%clk 0:01:27.2]} 33. Bh3 {[%clk 0:02:30.7]} 33... Rd8 {[%clk
0:01:24.7]} 34. Ra3 {[%clk 0:02:30.7]} 34... Qg5 {[%clk 0:01:22.9]} 35. f4
{[%clk 0:02:29.8]} 35... exf4 {[%clk 0:01:21.8]} 36. Qxf4 {[%clk 0:02:30.2]}
36... Qe7 {[%clk 0:01:20]} 37. Bf5 {[%clk 0:02:29]} 37... d3 {[%clk 0:01:17.6]}
38. Qd2 {[%clk 0:02:28.1]} 38... Qe5 {[%clk 0:01:15.1]} 39. Ra6 {[%clk
0:02:13.2]} 39... Qd4+ {[%clk 0:01:12.2]} 40. Kh1 {[%clk 0:02:12.9]} 40... Be6
{[%clk 0:00:56.4]} 41. Rxe6 {[%clk 0:02:10.1]} 41... fxe6 {[%clk 0:00:55.4]} 42.
Bxe6+ {[%clk 0:02:10.7]} 42... Kh8 {[%clk 0:00:55.2]} 43. Bf5 {[%clk 0:02:11]}
43... Qc4 {[%clk 0:00:51.2]} 44. e5 {[%clk 0:02:08.3]} 44... Qd5+ {[%clk
0:00:47.3]} 45. Kg1 {[%clk 0:02:07.8]} 45... Qxe5 {[%clk 0:00:47]} 46. g4 {[%clk
0:02:07.9]} 46... Qe2 {[%clk 0:00:43.8]} 47. Qxe2 {[%clk 0:02:07.6]} 47... dxe2
{[%clk 0:00:43.7]} 48. Kf2 {[%clk 0:02:08.3]} 48... Rd4 {[%clk 0:00:42.6]} 49.
Kxe2 {[%clk 0:02:08.5]} 49... Rxb4 {[%clk 0:00:43.1]} 50. Kd3 {[%clk 0:02:09.2]}
50... Rb2 {[%clk 0:00:43.3]} 51. h4 {[%clk 0:02:09.3]} 51... Rb4 {[%clk
0:00:42]} 52. Be4 {[%clk 0:02:09]} 52... Rc4 {[%clk 0:00:40.5]} 53. g5 {[%clk
0:02:09]} 53... hxg5 {[%clk 0:00:39.7]} 54. hxg5 {[%clk 0:02:09.5]} 54... Rc5
{[%clk 0:00:38.9]} 55. g6 {[%clk 0:02:09.3]} 55... Kg8 {[%clk 0:00:38.8]} 56.
Kd4 {[%clk 0:02:09.3]} 56... Rc4+ {[%clk 0:00:38.9]} 57. Kd3 {[%clk 0:02:09.9]}
57... Kf8 {[%clk 0:00:39.3]} 58. Bd5 {[%clk 0:02:10.1]} 58... Rc5 {[%clk
0:00:39]} 59. Kd4 {[%clk 0:02:10.4]} 59... Rxd5+ {[%clk 0:00:38.3]} 60. Kxd5
{[%clk 0:02:10.7]} 60... Ke7 {[%clk 0:00:38.8]} 61. Ke5 {[%clk 0:02:10.4]} 61...
b4 {[%clk 0:00:38.6]} 62. Kd4 {[%clk 0:01:51.1]} 62... Kf6 {[%clk 0:00:38.7]}
63. Kc4 {[%clk 0:01:51.4]} 63... Kxg6 {[%clk 0:00:38.1]} 64. Kxb4 {[%clk
0:01:52]} 64... Kf5 {[%clk 0:00:38.5]} 65. Kc4 {[%clk 0:01:52.7]} 65... Ke4
{[%clk 0:00:38.5]} 0-1

[Event "*** Titled Tuesday Blitz"]
[Site "Chess.com"]
[Date "2020.04.28"]
[Round "7"]
[White "Larina_Marija"]
[Black "AndrewDGreen"]
[Result "1-0"]
[WhiteElo "2163"]
[BlackElo "2260"]
[TimeControl "180+1"]
[EndTime "11:18:07 PDT"]
[Termination "Larina_Marija won by resignation"]

1. e4 {[%clk 0:03:00]} 1... c5 {[%clk 0:02:56.8]} 2. Nc3 {[%clk 0:02:59.4]} 2...
g6 {[%clk 0:02:56.9]} 3. g3 {[%clk 0:02:57.7]} 3... Bg7 {[%clk 0:02:57]} 4. Bg2
{[%clk 0:02:57.8]} 4... Nc6 {[%clk 0:02:57.6]} 5. d3 {[%clk 0:02:57.6]} 5... d6
{[%clk 0:02:58.1]} 6. Be3 {[%clk 0:02:47.3]} 6... e5 {[%clk 0:02:57.4]} 7. Qd2
{[%clk 0:02:41.6]} 7... Nd4 {[%clk 0:02:57.4]} 8. Nd5 {[%clk 0:02:21.2]} 8...
Ne7 {[%clk 0:02:55.8]} 9. Nxe7 {[%clk 0:02:11.2]} 9... Qxe7 {[%clk 0:02:55.5]}
10. c3 {[%clk 0:02:11.8]} 10... Ne6 {[%clk 0:02:53.6]} 11. Ne2 {[%clk
0:02:09.2]} 11... O-O {[%clk 0:02:52.8]} 12. O-O {[%clk 0:01:58.2]} 12... Rb8
{[%clk 0:02:41.7]} 13. d4 {[%clk 0:01:56]} 13... cxd4 {[%clk 0:02:40.3]} 14.
cxd4 {[%clk 0:01:55.1]} 14... Bd7 {[%clk 0:02:28.4]} 15. Rfd1 {[%clk 0:01:42.3]}
15... a6 {[%clk 0:02:25.2]} 16. dxe5 {[%clk 0:01:38.8]} 16... Bxe5 {[%clk
0:02:18.7]} 17. f4 {[%clk 0:01:38.7]} 17... Bg7 {[%clk 0:02:14.7]} 18. Qxd6
{[%clk 0:01:38.6]} 18... Qxd6 {[%clk 0:02:12.2]} 19. Rxd6 {[%clk 0:01:39.5]}
19... Bc6 {[%clk 0:02:12.6]} 20. e5 {[%clk 0:01:34.4]} 20... Bxg2 {[%clk
0:02:08.9]} 21. Kxg2 {[%clk 0:01:35.3]} 21... Rfc8 {[%clk 0:02:09.6]} 22. Rad1
{[%clk 0:01:29.3]} 22... Rc2 {[%clk 0:02:08.7]} 23. R1d2 {[%clk 0:01:28.6]}
23... Rbc8 {[%clk 0:02:08.8]} 24. Nc3 {[%clk 0:01:26.3]} 24... Rxd2+ {[%clk
0:01:55]} 25. Rxd2 {[%clk 0:01:27.2]} 25... Bf8 {[%clk 0:01:47.6]} 26. Nd5
{[%clk 0:01:24.6]} 26... Kg7 {[%clk 0:01:46.4]} 27. g4 {[%clk 0:01:10.6]} 27...
h5 {[%clk 0:01:44.2]} 28. h3 {[%clk 0:01:07.5]} 28... hxg4 {[%clk 0:01:44.1]}
29. hxg4 {[%clk 0:01:07.4]} 29... Bc5 {[%clk 0:01:33.6]} 30. f5 {[%clk
0:00:51.5]} 30... Bxe3 {[%clk 0:01:30.1]} 31. Nxe3 {[%clk 0:00:51.4]} 31... Nc5
{[%clk 0:01:26.7]} 32. Rc2 {[%clk 0:00:44]} 32... Rc6 {[%clk 0:01:25.3]} 33. Kf3
{[%clk 0:00:40]} 33... Nd3 {[%clk 0:01:17.2]} 34. Ke4 {[%clk 0:00:38.1]} 34...
Rxc2 {[%clk 0:01:06.8]} 35. Nxc2 {[%clk 0:00:39]} 35... Nxb2 {[%clk 0:01:05.7]}
36. f6+ {[%clk 0:00:33.7]} 36... Kh6 {[%clk 0:01:04.9]} 37. e6 {[%clk
0:00:28.6]} 37... fxe6 {[%clk 0:01:04.1]} 38. Ke5 {[%clk 0:00:28.8]} 38... Nc4+
{[%clk 0:00:55.4]} 39. Kxe6 {[%clk 0:00:27.7]} 39... g5 {[%clk 0:00:42.3]} 40.
f7 {[%clk 0:00:26.8]} 40... Kg7 {[%clk 0:00:42.1]} 41. Ke7 {[%clk 0:00:26.4]}
41... Nd6 {[%clk 0:00:40.5]} 42. f8=Q+ {[%clk 0:00:26.7]} 1-0

[Event "*** Titled Tuesday Blitz"]
[Site "Chess.com"]
[Date "2020.04.28"]
[Round "7"]
[White "Chessterra87"]
[Black "Two_Towers_Krakow"]
[Result "0-1"]
[WhiteElo "2317"]
[BlackElo "2473"]
[TimeControl "180+1"]
[EndTime "11:18:09 PDT"]
[Termination "Two_Towers_Krakow won by resignation"]

1. e4 {[%clk 0:03:00.9]} 1... c5 {[%clk 0:02:57.1]} 2. c3 {[%clk 0:03:00.7]}
2... d5 {[%clk 0:02:54.6]} 3. exd5 {[%clk 0:03:00.8]} 3... Qxd5 {[%clk
0:02:55.5]} 4. d4 {[%clk 0:03:01.4]} 4... Nc6 {[%clk 0:02:55.1]} 5. Nf3 {[%clk
0:03:01.8]} 5... cxd4 {[%clk 0:02:53.9]} 6. cxd4 {[%clk 0:03:01.6]} 6... e5
{[%clk 0:02:54.3]} 7. Nc3 {[%clk 0:03:01.1]} 7... Bb4 {[%clk 0:02:52.5]} 8. Be2
{[%clk 0:02:57.7]} 8... exd4 {[%clk 0:02:40.7]} 9. O-O {[%clk 0:02:53.4]} 9...
Qd8 {[%clk 0:02:33.3]} 10. Ne4 {[%clk 0:02:23.6]} 10... Nge7 {[%clk 0:02:18.1]}
11. Qa4 {[%clk 0:02:09.4]} 11... Bf5 {[%clk 0:02:05.5]} 12. Ng3 {[%clk
0:01:56.6]} 12... Bd7 {[%clk 0:01:54.7]} 13. Bd3 {[%clk 0:01:25.7]} 13... Qa5
{[%clk 0:01:51.9]} 14. Qc2 {[%clk 0:01:17.7]} 14... Bd6 {[%clk 0:01:38.1]} 15.
Bd2 {[%clk 0:01:10.6]} 15... Qc7 {[%clk 0:01:20.6]} 16. Ne4 {[%clk 0:01:04.5]}
16... Bf4 {[%clk 0:01:13.5]} 17. Rac1 {[%clk 0:00:48.5]} 17... O-O {[%clk
0:01:07.6]} 18. Nxd4 {[%clk 0:00:43.4]} 18... Bxh2+ {[%clk 0:01:06.6]} 19. Kh1
{[%clk 0:00:42.5]} 19... Bf4 {[%clk 0:01:04.5]} 20. Nxc6 {[%clk 0:00:32.8]}
20... Bxc6 {[%clk 0:00:52.7]} 21. Bc3 {[%clk 0:00:19.2]} 21... Ng6 {[%clk
0:00:37.4]} 22. Rce1 {[%clk 0:00:18]} 22... Rad8 {[%clk 0:00:29.4]} 23. Be2
{[%clk 0:00:16.8]} 23... Be5 {[%clk 0:00:26.3]} 24. Bf3 {[%clk 0:00:16.5]} 24...
Bxc3 {[%clk 0:00:25.9]} 25. bxc3 {[%clk 0:00:16.2]} 25... Qf4 {[%clk 0:00:25.9]}
26. Qc1 {[%clk 0:00:10.2]} 26... Qxc1 {[%clk 0:00:24.1]} 27. Rxc1 {[%clk
0:00:10.1]} 27... Ne5 {[%clk 0:00:24.6]} 28. Kg1 {[%clk 0:00:08.8]} 28... Nxf3+
{[%clk 0:00:24.5]} 29. gxf3 {[%clk 0:00:09.7]} 29... f5 {[%clk 0:00:23.8]} 30.
Nc5 {[%clk 0:00:09.8]} 30... Rd6 {[%clk 0:00:23.7]} 31. Kg2 {[%clk 0:00:09.3]}
31... Rg6+ {[%clk 0:00:23.3]} 32. Kh3 {[%clk 0:00:09]} 32... Bxf3 {[%clk
0:00:22.8]} 33. Rg1 {[%clk 0:00:08.3]} 33... Bg4+ {[%clk 0:00:23.1]} 34. Kg3
{[%clk 0:00:08]} 34... b6 {[%clk 0:00:23.1]} 35. Nd7 {[%clk 0:00:06.8]} 35...
f4+ {[%clk 0:00:22.9]} 36. Kh2 {[%clk 0:00:06.8]} 36... Bxd7 {[%clk 0:00:22.7]}
37. Rxg6 {[%clk 0:00:07.7]} 37... hxg6 {[%clk 0:00:23.5]} 38. Rd1 {[%clk
0:00:08.3]} 38... Bf5 {[%clk 0:00:23.2]} 0-1

[Event "*** Titled Tuesday Blitz"]
[Site "Chess.com"]
[Date "2020.04.28"]
[Round "7"]
[White "GOGIEFF"]
[Black "rpragchess"]
[Result "1-0"]
[WhiteElo "2997"]
[BlackElo "2828"]
[TimeControl "180+1"]
[EndTime "11:18:10 PDT"]
[Termination "GOGIEFF won by resignation"]

1. d4 {[%clk 0:03:00.9]} 1... Nf6 {[%clk 0:03:00.1]} 2. Nf3 {[%clk 0:02:58.2]}
2... d5 {[%clk 0:02:59.5]} 3. c4 {[%clk 0:02:55.4]} 3... e6 {[%clk 0:02:59.3]}
4. Nc3 {[%clk 0:02:54.8]} 4... a6 {[%clk 0:02:59.5]} 5. c5 {[%clk 0:02:53.7]}
5... b6 {[%clk 0:02:58.8]} 6. cxb6 {[%clk 0:02:53.5]} 6... cxb6 {[%clk
0:02:59.7]} 7. Bf4 {[%clk 0:02:53.7]} 7... Bd6 {[%clk 0:02:58.2]} 8. e3 {[%clk
0:02:53.9]} 8... O-O {[%clk 0:02:56.8]} 9. Bd3 {[%clk 0:02:51.9]} 9... Bb7
{[%clk 0:02:53.5]} 10. O-O {[%clk 0:02:43.8]} 10... Bxf4 {[%clk 0:02:52.1]} 11.
exf4 {[%clk 0:02:42.6]} 11... Nc6 {[%clk 0:02:52.5]} 12. Rc1 {[%clk 0:02:35.5]}
12... Qd6 {[%clk 0:02:51.1]} 13. Ne5 {[%clk 0:02:29.9]} 13... Rfc8 {[%clk
0:02:49.1]} 14. Re1 {[%clk 0:02:23.6]} 14... b5 {[%clk 0:02:44.5]} 15. Bb1
{[%clk 0:02:14.7]} 15... Rc7 {[%clk 0:02:25]} 16. g4 {[%clk 0:02:06.7]} 16...
Ne7 {[%clk 0:01:54.2]} 17. Qd3 {[%clk 0:01:31.8]} 17... g6 {[%clk 0:01:14.2]}
18. Rcd1 {[%clk 0:01:27.4]} 18... Ne4 {[%clk 0:00:48]} 19. Ne2 {[%clk 0:01:27]}
19... f6 {[%clk 0:00:47.8]} 20. Nf3 {[%clk 0:01:26.4]} 20... b4 {[%clk
0:00:45.6]} 21. Qe3 {[%clk 0:01:23.9]} 21... a5 {[%clk 0:00:43.9]} 22. Ng3
{[%clk 0:01:23.4]} 22... f5 {[%clk 0:00:40.1]} 23. Ne5 {[%clk 0:01:21.9]} 23...
Ba6 {[%clk 0:00:33.4]} 24. f3 {[%clk 0:01:17.9]} 24... Nf6 {[%clk 0:00:27.1]}
25. h4 {[%clk 0:01:16.1]} 25... Rac8 {[%clk 0:00:25.6]} 26. h5 {[%clk
0:01:15.8]} 26... a4 {[%clk 0:00:18.5]} 27. hxg6 {[%clk 0:01:07.2]} 27... hxg6
{[%clk 0:00:18.3]} 28. Kf2 {[%clk 0:00:52.6]} 28... Nc6 {[%clk 0:00:12.8]} 29.
g5 {[%clk 0:00:45]} 29... Ne8 {[%clk 0:00:05.6]} 30. Nxg6 {[%clk 0:00:43.2]}
30... Nd8 {[%clk 0:00:04]} 31. Rh1 {[%clk 0:00:41.5]} 31... Rh7 {[%clk
0:00:03.8]} 32. Nh5 {[%clk 0:00:38.9]} 32... Rcc7 {[%clk 0:00:03.5]} 33. Ne5
{[%clk 0:00:34.2]} 33... Nc6 {[%clk 0:00:02.2]} 34. Nf6+ {[%clk 0:00:31.5]}
34... Nxf6 {[%clk 0:00:01.2]} 35. gxf6 {[%clk 0:00:32.4]} 35... Nxe5 {[%clk
0:00:01.7]} 36. fxe5 {[%clk 0:00:32]} 36... Rxh1 {[%clk 0:00:01.7]} 37. exd6
{[%clk 0:00:30.8]} 1-0

[Event "*** Titled Tuesday Blitz"]
[Site "Chess.com"]
[Date "2020.04.28"]
[Round "7"]
[White "RitvarsReimanis"]
[Black "gvanna"]
[Result "1-0"]
[WhiteElo "2603"]
[BlackElo "2463"]
[TimeControl "180+1"]
[EndTime "11:18:11 PDT"]
[Termination "RitvarsReimanis won by resignation"]

1. d4 {[%clk 0:03:00.9]} 1... d5 {[%clk 0:02:59.9]} 2. c4 {[%clk 0:03:00.9]}
2... c6 {[%clk 0:03:00.1]} 3. Nf3 {[%clk 0:03:01.1]} 3... Nf6 {[%clk 0:03:00.4]}
4. e3 {[%clk 0:03:01.6]} 4... Bf5 {[%clk 0:03:00.2]} 5. Nc3 {[%clk 0:03:01.6]}
5... e6 {[%clk 0:02:59.9]} 6. Nh4 {[%clk 0:03:01.9]} 6... Be4 {[%clk 0:03:00.2]}
7. f3 {[%clk 0:03:01.6]} 7... Bg6 {[%clk 0:03:00.4]} 8. Bd2 {[%clk 0:03:02.2]}
8... Nbd7 {[%clk 0:02:59.8]} 9. Qb3 {[%clk 0:03:02.2]} 9... Qc7 {[%clk
0:02:59.6]} 10. O-O-O {[%clk 0:03:00.7]} 10... O-O-O {[%clk 0:02:58.3]} 11. Nxg6
{[%clk 0:02:56.4]} 11... hxg6 {[%clk 0:02:57.6]} 12. h3 {[%clk 0:02:56.8]} 12...
Kb8 {[%clk 0:02:53.4]} 13. Kb1 {[%clk 0:02:51.3]} 13... Bd6 {[%clk 0:02:50.3]}
14. Rc1 {[%clk 0:02:47.4]} 14... Qb6 {[%clk 0:02:47.7]} 15. Qa4 {[%clk
0:02:40.6]} 15... Be7 {[%clk 0:02:38.6]} 16. cxd5 {[%clk 0:02:16.6]} 16... exd5
{[%clk 0:02:37.6]} 17. Ne4 {[%clk 0:01:50.7]} 17... Qc7 {[%clk 0:01:51.8]} 18.
Nc3 {[%clk 0:01:46.8]} 18... Qb6 {[%clk 0:01:45.9]} 19. Nd1 {[%clk 0:01:43.6]}
19... Qc7 {[%clk 0:01:44.2]} 20. Ba5 {[%clk 0:01:42.4]} 20... Nb6 {[%clk
0:01:44.3]} 21. Qb3 {[%clk 0:01:42.4]} 21... Rhe8 {[%clk 0:01:42.7]} 22. Nc3
{[%clk 0:01:41.5]} 22... Bf8 {[%clk 0:01:38.2]} 23. Nb5 {[%clk 0:01:35.8]} 23...
Qe7 {[%clk 0:00:42.7]} 24. Nxa7 {[%clk 0:01:33.6]} 24... Kxa7 {[%clk 0:00:37.5]}
25. Bxb6+ {[%clk 0:01:29.3]} 25... Kb8 {[%clk 0:00:37.5]} 26. Qa4 {[%clk
0:01:22.4]} 26... Qd6 {[%clk 0:00:22.4]} 27. Qa7+ {[%clk 0:01:03.2]} 27... Kc8
{[%clk 0:00:22.4]} 28. Bxd8 {[%clk 0:00:43.5]} 28... Rxd8 {[%clk 0:00:21.3]} 29.
Ba6 {[%clk 0:00:35.1]} 29... Qc7 {[%clk 0:00:20.2]} 30. Qa8+ {[%clk 0:00:26.5]}
30... Kd7 {[%clk 0:00:20.1]} 31. Qxb7 {[%clk 0:00:26.9]} 31... Qxb7 {[%clk
0:00:13.7]} 32. Bxb7 {[%clk 0:00:27.8]} 32... Rb8 {[%clk 0:00:09.7]} 33. Bxc6+
{[%clk 0:00:27.8]} 33... Kd6 {[%clk 0:00:10.6]} 34. Ba4 {[%clk 0:00:27.9]} 34...
Be7 {[%clk 0:00:10.7]} 35. Rc6+ {[%clk 0:00:26.3]} 35... Kd7 {[%clk 0:00:11.3]}
36. Rxf6+ {[%clk 0:00:26.5]} 36... Kd8 {[%clk 0:00:11.1]} 37. Rxf7 {[%clk
0:00:24.3]} 1-0

[Event "*** Titled Tuesday Blitz"]
[Site "Chess.com"]
[Date "2020.04.28"]
[Round "7"]
[White "AndrewMaco"]
[Black "SlavenPastar"]
[Result "1-0"]
[WhiteElo "2627"]
[BlackElo "2371"]
[TimeControl "180+1"]
[EndTime "11:18:11 PDT"]
[Termination "AndrewMaco won by resignation"]

1. e4 {[%clk 0:03:00.9]} 1... b6 {[%clk 0:02:57.9]} 2. d4 {[%clk 0:02:58.7]}
2... Bb7 {[%clk 0:02:58.4]} 3. Nd2 {[%clk 0:02:57.6]} 3... e6 {[%clk 0:02:57.9]}
4. c3 {[%clk 0:02:56.7]} 4... c5 {[%clk 0:02:56.8]} 5. Ngf3 {[%clk 0:02:54.6]}
5... d5 {[%clk 0:02:54.4]} 6. e5 {[%clk 0:02:54.3]} 6... Ne7 {[%clk 0:02:52.5]}
7. Bd3 {[%clk 0:02:54]} 7... g6 {[%clk 0:02:50.4]} 8. Nf1 {[%clk 0:02:52.6]}
8... h5 {[%clk 0:02:50.4]} 9. Bg5 {[%clk 0:02:51.2]} 9... Nbc6 {[%clk
0:02:41.4]} 10. Ng3 {[%clk 0:02:39.7]} 10... Qc8 {[%clk 0:02:40.2]} 11. a3
{[%clk 0:02:38.3]} 11... a5 {[%clk 0:02:33.6]} 12. h4 {[%clk 0:02:35.5]} 12...
Ba6 {[%clk 0:02:28.8]} 13. O-O {[%clk 0:02:32.4]} 13... Bxd3 {[%clk 0:02:23.7]}
14. Qxd3 {[%clk 0:02:33.3]} 14... c4 {[%clk 0:02:16.1]} 15. Qd2 {[%clk
0:02:32.7]} 15... Nf5 {[%clk 0:01:56.5]} 16. Bf6 {[%clk 0:02:24.3]} 16... Rg8
{[%clk 0:01:56.2]} 17. a4 {[%clk 0:02:18.9]} 17... Qd7 {[%clk 0:01:48.6]} 18. b3
{[%clk 0:02:14.3]} 18... cxb3 {[%clk 0:01:45]} 19. Qb2 {[%clk 0:02:14.5]} 19...
Be7 {[%clk 0:01:41.1]} 20. Bxe7 {[%clk 0:02:07.2]} 20... Qxe7 {[%clk 0:01:36.7]}
21. Qxb3 {[%clk 0:02:06.7]} 21... Rb8 {[%clk 0:01:26.6]} 22. Nxf5 {[%clk
0:02:05.7]} 22... gxf5 {[%clk 0:01:26.2]} 23. Ng5 {[%clk 0:02:05.9]} 23... Kf8
{[%clk 0:01:10.1]} 24. Nh7+ {[%clk 0:01:59.8]} 24... Kg7 {[%clk 0:01:03.5]} 25.
Nf6 {[%clk 0:01:59.8]} 25... Rh8 {[%clk 0:01:04]} 26. Rfe1 {[%clk 0:01:54.8]}
26... Rh6 {[%clk 0:00:50.2]} 27. Re3 {[%clk 0:01:54.2]} 27... f4 {[%clk
0:00:27.9]} 28. Rf3 {[%clk 0:01:51.1]} 28... Rxf6 {[%clk 0:00:27.7]} 29. exf6+
{[%clk 0:01:48.7]} 29... Qxf6 {[%clk 0:00:28.6]} 30. g3 {[%clk 0:01:49]} 30...
e5 {[%clk 0:00:11.7]} 31. Qxd5 {[%clk 0:01:46.7]} 31... Rd8 {[%clk 0:00:09.5]}
32. Qe4 {[%clk 0:01:46.6]} 32... exd4 {[%clk 0:00:08.1]} 33. Rxf4 {[%clk
0:01:47]} 33... Qg6 {[%clk 0:00:08.2]} 34. Qxg6+ {[%clk 0:01:45.2]} 34... fxg6
{[%clk 0:00:09.1]} 35. cxd4 {[%clk 0:01:45.4]} 35... Nxd4 {[%clk 0:00:09.7]} 36.
Kg2 {[%clk 0:01:45.3]} 36... Nf5 {[%clk 0:00:08]} 37. Rb1 {[%clk 0:01:44.2]}
37... Rd6 {[%clk 0:00:08.3]} 38. Re4 {[%clk 0:01:41.4]} 38... Kf6 {[%clk
0:00:07.6]} 39. Re2 {[%clk 0:01:40.3]} 39... Ne7 {[%clk 0:00:07.1]} 40. Reb2
{[%clk 0:01:39.5]} 40... Nd5 {[%clk 0:00:07.5]} 41. Rd2 {[%clk 0:01:38]} 41...
Ne3+ {[%clk 0:00:07]} 42. Kf3 {[%clk 0:01:34.8]} 42... Rxd2 {[%clk 0:00:07.9]}
43. Rxb6+ {[%clk 0:01:34.4]} 43... Kf5 {[%clk 0:00:06.7]} 44. Kxe3 {[%clk
0:01:34.7]} 44... Rd5 {[%clk 0:00:05.3]} 45. f3 {[%clk 0:01:26.6]} 45... Rc5
{[%clk 0:00:05.4]} 46. Rb5 {[%clk 0:01:22.1]} 46... Rxb5 {[%clk 0:00:04.9]} 47.
axb5 {[%clk 0:01:23]} 47... Ke5 {[%clk 0:00:05.3]} 48. g4 {[%clk 0:01:23.7]}
48... a4 {[%clk 0:00:02.8]} 49. Kd3 {[%clk 0:01:21]} 49... Kd5 {[%clk
0:00:03.1]} 50. gxh5 {[%clk 0:01:20.8]} 50... gxh5 {[%clk 0:00:03.1]} 51. f4
{[%clk 0:01:21.3]} 51... a3 {[%clk 0:00:03.8]} 52. Kc3 {[%clk 0:01:20]} 52...
Kc5 {[%clk 0:00:04.7]} 53. f5 {[%clk 0:01:20.1]} 53... Kxb5 {[%clk 0:00:05.6]}
54. f6 {[%clk 0:01:20.6]} 54... a2 {[%clk 0:00:06.5]} 55. Kb2 {[%clk 0:01:20.5]}
55... Kc6 {[%clk 0:00:07.4]} 56. f7 {[%clk 0:01:20.5]} 56... Kd7 {[%clk
0:00:08.3]} 57. f8=Q {[%clk 0:01:20.9]} 1-0